bitfinex/quotes_SOLUSD_20250617
["timestamp","ask_amount","ask_price","bid_price","bid_amount"]
[1750200075194,1.5183,147.49,147.46,5.67330414]
[1750200076100,1.5183,147.49,147.45,35.37016408]
[1750200076304,5.67330414,147.47,147.45,29.69685994]
[1750200076499,7.19160414,147.49,147.45,35.37016408]
[1750200076809,1.5183,147.49,147.45,35.37016408]
[1750200077303,16.61760018,147.51,147.47,5.67330414]
[1750200077989,5.67330414,147.5,147.46,5.67330414]
[1750200078492,5.67330414,147.5,147.47,23.73364073]
[1750200079200,16.61760018,147.51,147.47,29.40694487]
[1750200079803,16.61760018,147.51,147.47,23.73364073]
[1750200080394,5.67330414,147.5,147.47,23.73364073]
[1750200080614,5.67330414,147.49,147.47,23.73364073]
[1750200081515,5.67330414,147.49,147.47,16.95260052]
[1750200082017,5.67330414,147.5,147.47,16.95260052]
[1750200083392,5.67330414,147.5,147.47,23.73364073]
[1750200086719,5.67330414,147.49,147.47,23.73364073]
[1750200086938,5.67330414,147.48,147.47,6.78104021]
[1750200088608,5.67330414,147.48,147.46,6.78150006]
[1750200088811,5.67330414,147.47,147.46,6.78150006]
[1750200089700,0.14216157,147.49,147.46,6.78150006]
[1750200089900,5.67330414,147.47,147.46,6.78150006]
[1750200092210,6.09978885,147.47,147.44,6.78220733]
[1750200092540,6.09978885,147.47,147.41,42.95857782]
[1750200092541,0.42648471,147.44,147.41,6.78380028]
[1750200092829,182.2547291,147.48,147.41,23.74330099]
[1750200092830,0.14216157,147.46,147.41,23.74330099]
[1750200092999,5.67330414,147.43,147.41,23.74330099]
[1750200093205,5.67330414,147.42,147.41,6.78380028]
[1750200093917,0.42648471,147.46,147.41,6.78380028]
[1750200094110,5.67330414,147.42,147.41,6.78380028]
[1750200094304,0.42648471,147.44,147.41,6.78380028]
[1750200094507,5.67330414,147.42,147.41,6.78380028]
[1750200096642,5.67330414,147.43,147.41,6.78380028]
[1750200103148,147.9,147.45,147.41,6.78380028]
[1750200103353,5.67330414,147.43,147.41,6.78380028]
[1750200104023,153.57330414,147.45,147.41,23.74330099]
[1750200105045,153.57330414,147.45,147.41,29.41660513]
[1750200108459,153.57330414,147.45,147.41,23.74330099]
[1750200108865,5.67330414,147.42,147.41,6.78380028]
[1750200109923,5.67330414,147.42,147.4,6.78426051]
[1750200110145,5.67330414,147.41,147.4,6.78426051]
[1750200110527,5.67330414,147.42,147.4,6.78426051]
[1750200119550,147.9,147.44,147.4,23.74491179]
[1750200119850,153.57330414,147.44,147.4,23.74491179]
[1750200120434,153.57330414,147.44,147.4,29.41821593]
[1750200121838,5.67330414,147.43,147.4,23.74491179]
[1750200122943,153.57330414,147.44,147.4,23.74491179]
[1750200126275,5.67330414,147.43,147.4,23.74491179]
[1750200127026,5.67330414,147.41,147.35,6.7865626]
[1750200127261,5.67330414,147.4,147.35,29.42556318]
[1750200127566,5.67330414,147.4,147.36,5.67330414]
[1750200127949,147.9,147.42,147.35,49.75225904]
[1750200127950,5.67330414,147.39,147.35,49.75225904]
[1750200128155,5.67330414,147.38,147.35,23.75225904]
[1750200128345,5.67330414,147.38,147.35,49.75225904]
[1750200128551,5.67330414,147.37,147.35,23.75225904]
[1750200129558,0.42648471,147.41,147.35,23.75225904]
[1750200129766,5.67330414,147.4,147.35,29.42556318]
[1750200130157,5.67330414,147.39,147.35,29.42556318]
[1750200130359,5.67330414,147.39,147.35,23.75225904]
[1750200130567,5.67330414,147.38,147.35,23.75225904]
[1750200130874,5.67330414,147.36,147.34,5.94]
[1750200131168,1.6563,147.37,147.3,12.72886625]
[1750200131169,0.42648471,147.34,147.3,12.72886625]
[1750200131368,5.67330414,147.31,147.27,6.7902492]
[1750200131572,5.67330414,147.29,147.27,23.76574598]
[1750200131870,5.67330414,147.3,147.27,23.76574598]
[1750200134260,5.67330414,147.29,147.27,23.76574598]
[1750200138077,5.67330414,147.3,147.27,23.76574598]
[1750200138594,5.67330414,147.29,147.27,23.76574598]
[1750200139591,24.08149361,147.34,147.27,23.76574598]
[1750200139592,5.67330414,147.28,147.27,6.7902492]
[1750200140989,5.67330414,147.29,147.27,6.7902492]
[1750200141491,5.67330414,147.28,147.27,6.7902492]
[1750200142286,147.9,147.3,147.27,6.7902492]
[1750200142485,5.67330414,147.28,147.27,6.7902492]
[1750200147068,0.14216157,147.26,147.22,6.79255535]
[1750200147287,5.67330414,147.24,147.22,6.79255535]
[1750200147484,5.67330414,147.25,147.22,6.79255535]
[1750200147995,5.67330414,147.25,147.22,23.77394374]
[1750200149872,5.67330414,147.24,147.22,23.77394374]
[1750200150288,147.9,147.27,147.22,23.77394374]
[1750200150289,5.67330414,147.25,147.22,23.77394374]
[1750200151002,5.67330414,147.24,147.22,6.79255535]
[1750200152413,5.67330414,147.25,147.22,23.77394374]
[1750200152706,0.14216157,147.26,147.23,5.67330414]
[1750200153374,0.14216157,147.26,147.22,29.44724788]
[1750200154003,153.57330414,147.27,147.22,29.44724788]
[1750200154890,147.9,147.26,147.22,29.44724788]
[1750200156593,147.9,147.26,147.24,6.7916327]
[1750200157107,147.9,147.26,147.24,12.46493684]
[1750200160906,147.9,147.26,147.24,6.7916327]
[1750200165013,147.9,147.26,147.24,12.46493684]
[1750200165319,147.9,147.26,147.25,5.67330414]
[1750200165528,147.9,147.31,147.25,5.67330414]
[1750200165693,147.9,147.31,147.29,5.67330414]
[1750200165895,153.57330414,147.33,147.29,5.67330414]
[1750200166415,147.9,147.33,147.29,5.67330414]
[1750200166618,147.9,147.33,147.3,6.78886625]
[1750200167195,147.9,147.34,147.3,12.46217039]
[1750200167400,149.4756,147.35,147.32,5.67330414]
[1750200167899,149.4756,147.35,147.31,5.67330414]
[1750200168797,149.4756,147.35,147.32,6.78794461]
[1750200169713,155.14890414,147.35,147.32,6.78794461]
[1750200170499,147.9,147.35,147.33,5.67330414]
[1750200170815,8.82615758,147.36,147.34,5.67330414]
[1750200170816,156.72615758,147.36,147.34,5.67330414]
[1750200171123,156.72615758,147.36,147.35,5.67330414]
[1750200172526,162.39946172,147.36,147.35,6.7865626]
[1750200173225,156.72615758,147.36,147.35,6.7865626]
[1750200174501,156.72615758,147.36,147.34,6.78702321]
[1750200184336,5.67330414,147.35,147.33,5.94]
[1750200184630,5.67330414,147.35,147.33,12.72737537]
[1750200186938,156.72615758,147.36,147.34,5.67330414]
[1750200187130,156.72615758,147.36,147.34,31.67330414]
[1750200187443,156.72615758,147.36,147.34,26.0]
[1750200188211,156.72615758,147.36,147.35,6.7865626]
[1750200197069,156.72615758,147.36,147.34,6.78702321]
[1750200197228,156.72615758,147.36,147.34,12.46032735]
[1750200197556,156.72615758,147.36,147.34,6.78702321]
[1750200198364,156.72615758,147.36,147.34,12.46032735]
[1750200198574,156.72615758,147.36,147.35,5.67330414]
[1750200198758,156.72615758,147.36,147.34,12.46032735]
[1750200200882,5.67330414,147.35,147.32,6.78794461]
[1750200201050,5.67330414,147.33,147.31,6.78833445]
[1750200204583,5.67330414,147.34,147.31,6.78833445]
[1750200204784,5.02420736,147.35,147.31,29.43265209]
[1750200205074,201.6500685,147.36,147.32,5.67330414]
[1750200205075,164.04846172,147.36,147.32,5.67330414]
[1750200205255,164.04846172,147.36,147.31,29.43265209]
[1750200206270,158.37515758,147.36,147.31,29.43265209]
[1750200206478,5.67330414,147.35,147.31,29.43265209]
[1750200207383,10.70123686,147.35,147.31,29.43265209]
[1750200207582,5.02793272,147.35,147.31,29.43265209]
[1750200208289,164.04846172,147.36,147.31,29.43265209]
[1750200209778,158.37515758,147.36,147.33,23.75619356]
[1750200210288,164.04846172,147.36,147.33,23.75619356]
[1750200211287,156.72615758,147.36,147.33,29.4294977]
[1750200211892,156.72615758,147.36,147.34,5.67330414]
[1750200212288,156.72615758,147.36,147.31,23.7594189]
[1750200212497,156.72615758,147.36,147.34,5.67330414]
[1750200212792,156.72615758,147.36,147.33,5.67330414]
[1750200213287,156.72615758,147.36,147.34,5.67330414]
[1750200214282,156.72615758,147.36,147.35,6.7865626]
[1750200214584,161.76671125,147.36,147.35,6.7865626]
[1750200216289,161.76671125,147.36,147.34,6.78702321]
[1750200216587,156.72615758,147.36,147.34,6.78702321]
[1750200227791,162.39946172,147.36,147.34,6.78702321]
[1750200227981,10.70955291,147.35,147.34,6.78702321]
[1750200228178,5.03624877,147.35,147.34,6.78702321]
[1750200231388,5.03624877,147.35,147.32,6.78794461]
[1750200232488,162.39946172,147.36,147.32,6.78794461]
[1750200233499,5.67330414,147.35,147.32,6.78794461]
[1750200234482,147.9,147.36,147.33,5.67330414]
[1750200234675,147.9,147.36,147.32,23.75780613]
[1750200234676,147.9,147.37,147.34,5.67330414]
[1750200234871,147.9,147.37,147.34,3.63430224]
[1750200235580,147.9,147.37,147.33,3.63430224]
[1750200236406,147.9,147.37,147.34,6.78702321]
[1750200240016,147.9,147.38,147.37,26.0]
[1750200240317,161.88680856,147.4,147.37,31.67874503]
[1750200240492,7.27934503,147.38,147.34,23.75458123]
[1750200240819,5.67874503,147.36,147.34,6.78702321]
[1750200241291,147.9,147.37,147.34,23.75458123]
[1750200241813,153.57874503,147.37,147.34,23.75458123]
[1750200241996,153.57874503,147.37,147.34,16.96755802]
[1750200244212,153.57874503,147.37,147.34,23.75458123]
[1750200245515,147.9,147.37,147.34,23.75458123]
[1750200246321,153.57874503,147.37,147.34,16.96755802]
[1750200248116,5.67874503,147.35,147.33,6.78748387]
[1750200248303,147.9,147.37,147.33,6.78748387]
[1750200248503,10.71500491,147.36,147.33,6.78748387]
[1750200249197,5.67874503,147.35,147.33,6.78748387]
[1750200253910,10.72271957,147.35,147.33,6.78748387]
[1750200254092,5.67874503,147.35,147.33,6.78748387]
[1750200255620,147.9,147.34,147.32,5.92]
[1750200255925,0.42648471,147.32,147.27,6.7902492]
[1750200256089,5.67874503,147.28,147.27,6.7902492]
[1750200256810,3.63948694,147.28,147.27,6.7902492]
[1750200257429,0.42648471,147.3,147.27,6.7902492]
[1750200257721,3.63948694,147.29,147.27,6.7902492]
[1750200258388,3.63948694,147.28,147.27,6.7902492]
[1750200258816,5.68635205,147.28,147.27,6.7902492]
[1750200259418,0.14216157,147.27,147.22,16.98134854]
[1750200259624,5.68635205,147.24,147.22,16.98134854]
[1750200260500,5.68635205,147.24,147.21,6.79301677]
[1750200260725,5.68635205,147.22,147.19,6.7939398]
[1750200261811,5.68635205,147.22,147.18,23.78034902]
[1750200262496,5.68635205,147.21,147.18,23.78034902]
[1750200264323,0.14216157,147.22,147.18,23.78034902]
[1750200264623,5.82851362,147.22,147.18,23.78034902]
[1750200265514,5.68635205,147.21,147.18,23.78034902]
[1750200266417,0.14216157,147.22,147.18,6.79440141]
[1750200266418,5.68635205,147.19,147.18,6.79440141]
[1750200267316,5.82851362,147.19,147.18,6.79440141]
[1750200267746,5.82851362,147.19,147.17,6.79486308]
[1750200268341,147.9,147.18,147.17,6.79486308]
[1750200268842,147.9,147.18,147.17,12.48121513]
[1750200269132,147.9,147.18,147.17,6.79486308]
[1750200269731,147.9,147.18,147.17,12.48121513]
[1750200274237,147.9,147.18,147.17,6.79486308]
[1750200276355,147.9,147.18,147.17,12.48121513]
[1750200278755,147.9,147.24,147.17,63.44268824]
[1750200278927,147.9,147.23,147.2,5.68635205]
[1750200279352,147.9,147.23,147.22,5.68635205]
[1750200279536,147.9,147.23,147.22,11.60635205]
[1750200279753,13.67979745,147.26,147.25,26.0]
[1750200279930,13.67979745,147.26,147.25,31.68635205]
[1750200280838,13.67979745,147.26,147.25,32.79117147]
[1750200281037,13.67979745,147.26,147.25,38.47752352]
[1750200282857,13.67979745,147.26,147.25,6.79117147]
[1750200283928,19.3661495,147.26,147.24,6.79143294]
[1750200284162,147.9,147.25,147.24,6.79143294]
[1750200287254,147.9,147.25,147.23,6.792094]
[1750200287751,153.58635205,147.25,147.23,6.792094]
[1750200287958,147.9,147.25,147.23,6.792094]
[1750200292276,147.9,147.25,147.23,12.47844605]
[1750200294345,147.9,147.25,147.24,26.0]
[1750200295375,147.9,147.25,147.24,32.7916327]
[1750200300170,147.9,147.25,147.24,38.47798475]
[1750200302556,1.6137,147.29,147.24,55.45706652]
[1750200302758,1.6137,147.29,147.27,5.68635205]
[1750200302959,147.9,147.3,147.27,5.68635205]
[1750200303469,147.9,147.3,147.29,6.78932717]
[1750200303686,147.9,147.3,147.29,12.47567922]
[1750200303862,13.51789161,147.33,147.29,29.44899716]
[1750200304064,13.51789161,147.33,147.3,5.68635205]
[1750200305282,13.51789161,147.33,147.31,6.7884054]
[1750200306152,13.51789161,147.33,147.32,5.68635205]
[1750200306661,13.51789161,147.33,147.31,12.47475745]
[1750200310755,13.51789161,147.33,147.31,6.7884054]
[1750200310960,13.51789161,147.33,147.31,12.47475745]
[1750200312199,13.51789161,147.33,147.31,6.7884054]
[1750200312373,5.68635205,147.32,147.28,6.78978815]
[1750200312563,19.20424366,147.33,147.28,12.4761402]
[1750200313364,13.51789161,147.33,147.3,5.68635205]
[1750200313996,13.51789161,147.33,147.31,6.7884054]
[1750200314308,19.20424366,147.33,147.31,6.7884054]
[1750200316192,5.68635205,147.32,147.3,6.78886625]
[1750200316584,19.20424366,147.33,147.3,6.78886625]
[1750200317395,37.3727041,147.31,147.22,6.79255535]
[1750200317690,5.68635205,147.24,147.22,6.79255535]
[1750200318082,5.68635205,147.24,147.21,6.79301677]
[1750200318792,1.6427,147.26,147.23,5.68635205]
[1750200319381,5.68635205,147.28,147.24,5.68635205]
[1750200320285,5.68635205,147.28,147.25,6.79117147]
[1750200322240,0.14216157,147.29,147.24,29.45706652]
[1750200322401,149.5145,147.3,147.26,5.68635205]
[1750200322592,149.5145,147.3,147.27,5.68635205]
[1750200322897,155.20085205,147.3,147.26,11.58635205]
[1750200323598,155.20085205,147.3,147.27,6.7902492]
[1750200324797,149.5145,147.3,147.27,29.45222425]
[1750200325680,147.9,147.3,147.27,29.45222425]
[1750200326809,147.9,147.3,147.29,12.47567922]
[1750200328197,147.9,147.3,147.29,6.78932717]
[1750200329404,147.9,147.3,147.29,12.47567922]
[1750200332106,147.9,147.3,147.29,6.78932717]
[1750200332313,147.9,147.3,147.29,12.47567922]
[1750200332791,161.41789161,147.33,147.29,29.44899716]
[1750200333000,161.41789161,147.33,147.3,5.68635205]
[1750200333300,161.41789161,147.33,147.31,5.68635205]
[1750200333806,13.51789161,147.33,147.32,11.58635205]
[1750200334913,13.51789161,147.33,147.32,18.37429666]
[1750200336611,147.9,147.37,147.32,35.34415818]
[1750200337020,147.9,147.37,147.35,5.68635205]
[1750200337203,147.9,147.37,147.36,6.78610206]
[1750200338902,147.9,147.37,147.35,12.47291465]
[1750200340022,147.9,147.37,147.35,6.7865626]
[1750200340206,147.9,147.37,147.35,12.47291465]
[1750200345609,147.9,147.37,147.36,5.68635205]
[1750200346222,147.9,147.37,147.36,12.47245411]
[1750200347311,147.9,147.37,147.36,6.78610206]
[1750200348226,147.9,147.37,147.35,6.7865626]
[1750200351043,153.58635205,147.37,147.35,6.7865626]
[1750200351252,153.58635205,147.36,147.32,5.9]
[1750200351408,5.68635205,147.33,147.28,11.58635205]
[1750200352335,5.68635205,147.31,147.28,5.9]
[1750200353218,5.68635205,147.31,147.29,6.78932717]
[1750200354629,1.6427,147.33,147.29,6.78932717]
[1750200354630,5.68635205,147.32,147.29,6.78932717]
[1750200357357,5.68635205,147.31,147.29,6.78932717]
[1750200359753,5.82851362,147.3,147.29,6.78932717]
[1750200359928,5.82851362,147.3,147.28,5.9]
[1750200360143,0.42648471,147.28,147.24,6.7916327]
[1750200360322,5.82851362,147.26,147.24,6.7916327]
[1750200360525,1.6219,147.27,147.24,29.45706652]
[1750200360726,147.9,147.29,147.26,5.68635205]
[1750200360942,147.9,147.29,147.27,5.68635205]
[1750200361145,147.9,147.29,147.26,5.68635205]
[1750200361442,153.58635205,147.29,147.25,5.68635205]
[1750200361656,147.9,147.29,147.26,5.68635205]
[1750200362026,147.9,147.29,147.27,6.7902492]
[1750200362248,147.9,147.29,147.27,12.47660125]
[1750200362839,147.9,147.29,147.28,5.68635205]
[1750200363140,147.9,147.29,147.27,6.7902492]
[1750200363336,147.9,147.29,147.27,12.47660125]
[1750200373335,147.9,147.29,147.27,5.68635205]
[1750200374253,147.9,147.29,147.28,6.78978815]
[1750200375859,147.9,147.29,147.26,5.68635205]
[1750200377162,147.9,147.29,147.27,12.47660125]
[1750200384059,147.9,147.29,147.28,5.68635205]
[1750200384563,5.68635205,147.33,147.28,5.68635205]
[1750200384762,5.68635205,147.33,147.29,5.68635205]
[1750200384964,5.68635205,147.33,147.28,5.68635205]
[1750200387250,5.68635205,147.33,147.29,6.78932717]
[1750200387443,5.68635205,147.3,147.29,6.78932717]
[1750200388176,5.82851362,147.31,147.29,6.78932717]
[1750200388670,5.82851362,147.31,147.27,23.7658722]
[1750200389148,5.82851362,147.31,147.27,29.45222425]
[1750200389474,5.82851362,147.31,147.27,23.7658722]
[1750200392159,5.82851362,147.31,147.27,29.45222425]
[1750200392466,0.14216157,147.31,147.28,5.68635205]
[1750200393461,147.9,147.32,147.29,12.47567922]
[1750200394577,147.9,147.32,147.29,29.44899716]
[1750200394964,147.9,147.32,147.29,23.76264511]
[1750200397065,147.9,147.32,147.29,5.68635205]
[1750200397875,147.9,147.32,147.3,5.68635205]
[1750200398864,147.9,147.32,147.31,5.68635205]
[1750200399180,147.9,147.32,147.31,12.47475745]
[1750200399964,147.9,147.37,147.31,29.44577095]
[1750200400171,5.05306077,147.36,147.33,5.68635205]
[1750200401376,5.05306077,147.36,147.34,6.78702321]
[1750200401682,147.9,147.37,147.34,6.78702321]
[1750200405571,147.9,147.37,147.34,23.75458123]
[1750200406399,147.9,147.36,147.34,23.75458123]
[1750200407496,147.9,147.36,147.34,29.44093328]
[1750200420309,147.9,147.36,147.34,16.96755802]
[1750200420897,147.9,147.36,147.35,26.0]
[1750200421075,151.53501547,147.36,147.35,26.0]
[1750200421276,148.32648471,147.36,147.33,6.78748387]
[1750200421485,1.6154,147.39,147.35,29.63501547]
[1750200421703,1.6576,147.43,147.38,29.63501547]
[1750200421891,1.6576,147.43,147.41,3.63501547]
[1750200422602,15.11333337,147.45,147.42,10.41835558]
[1750200422806,15.11333337,147.45,147.43,3.63501547]
[1750200423005,15.11333337,147.45,147.43,5.67183662]
[1750200423717,15.11333337,147.45,147.42,12.45517673]
[1750200425627,15.11333337,147.45,147.43,5.67183662]
[1750200426003,15.11333337,147.45,147.42,12.45517673]
[1750200426211,15.11333337,147.45,147.42,6.78334011]
[1750200426391,15.11333337,147.45,147.42,12.45517673]
[1750200428208,15.11333337,147.45,147.44,6.78241996]
[1750200428712,15.11333337,147.45,147.42,6.78334011]
[1750200428917,5.67183662,147.43,147.38,5.9]
[1750200429096,5.67183662,147.4,147.38,12.68500867]
[1750200429410,5.67183662,147.41,147.38,12.68500867]
[1750200429922,6.09832133,147.42,147.38,12.68500867]
[1750200430218,153.57183662,147.43,147.39,5.67183662]
[1750200430812,153.57183662,147.43,147.38,18.35684529]
[1750200434221,5.67183662,147.42,147.38,18.35684529]
[1750200436521,147.9,147.43,147.38,18.35684529]
[1750200436704,147.9,147.43,147.4,5.67183662]
[1750200437021,153.57183662,147.43,147.41,6.78380028]
[1750200439024,153.57183662,147.43,147.4,6.78426051]
[1750200439804,147.9,147.43,147.4,12.45609713]
[1750200440320,147.9,147.43,147.4,29.41674841]
[1750200440920,147.9,147.43,147.42,5.67183662]
[1750200441099,15.11333337,147.45,147.43,6.78288001]
[1750200441307,15.11333337,147.45,147.44,5.67183662]
[1750200441599,15.11333337,147.45,147.43,12.45471663]
[1750200444112,15.11333337,147.45,147.44,5.67183662]
[1750200445212,15.11333337,147.45,147.44,6.78241996]
[1750200447515,15.11333337,147.45,147.43,6.78288001]
[1750200448027,15.11333337,147.45,147.43,12.45471663]
[1750200448622,15.11333337,147.45,147.43,6.78288001]
[1750200452322,20.78516999,147.45,147.43,6.78288001]
[1750200453139,15.11333337,147.45,147.42,12.66311823]
[1750200453315,5.67183662,147.43,147.42,12.66311823]
[1750200454143,153.57183662,147.44,147.42,12.66311823]
[1750200456042,147.9,147.44,147.42,12.66311823]
[1750200458545,147.9,147.44,147.42,6.78311823]
[1750200459045,153.57183662,147.44,147.42,6.78311823]
[1750200459533,147.9,147.43,147.42,6.78311823]
[1750200459732,147.9,147.43,147.41,6.78380028]
[1750200468757,153.57183662,147.43,147.41,6.78380028]
[1750200468957,5.05903236,147.42,147.41,6.78380028]
[1750200469263,10.73086898,147.42,147.41,6.78380028]
[1750200470333,5.05903236,147.42,147.4,6.78426051]
[1750200470637,153.57183662,147.43,147.4,6.78426051]
[1750200470845,5.05787378,147.42,147.4,6.78426051]
[1750200471044,158.6296494,147.41,147.35,16.96543913]
[1750200471248,5.67183662,147.36,147.34,12.66702321]
[1750200471460,5.67183662,147.35,147.34,12.66702321]
[1750200471762,5.67183662,147.36,147.34,12.66702321]
[1750200472262,5.67183662,147.35,147.34,12.66702321]
[1750200472649,5.05781278,147.38,147.34,12.66702321]
[1750200472841,5.67183662,147.36,147.34,12.66702321]
[1750200473963,5.05781278,147.38,147.35,5.67183662]
[1750200474167,147.9,147.39,147.37,31.67183662]
[1750200474361,147.9,147.39,147.38,6.78518116]
[1750200474743,147.9,147.39,147.38,12.45701778]
[1750200475741,147.9,147.39,147.38,6.78518116]
[1750200476067,147.9,147.39,147.38,12.45701778]
[1750200479973,147.9,147.39,147.38,6.78518116]
[1750200480144,153.57183662,147.39,147.37,6.78546294]
[1750200481152,5.67183662,147.38,147.37,6.78546294]
[1750200481557,153.57183662,147.39,147.37,6.78546294]
[1750200482247,5.67183662,147.38,147.36,6.78610206]
[1750200482565,5.67183662,147.37,147.35,6.78642763]
[1750200482747,147.9,147.39,147.34,12.66684574]
[1750200482748,5.67183662,147.36,147.34,12.66684574]
[1750200483075,5.67183662,147.37,147.34,12.66684574]
[1750200483656,153.57183662,147.39,147.35,5.67183662]
[1750200483854,153.57183662,147.39,147.34,35.30624038]
[1750200485079,5.67183662,147.38,147.34,29.63440376]
[1750200485246,5.67183662,147.37,147.34,29.63440376]
[1750200486379,5.67183662,147.38,147.34,35.30624038]
[1750200488259,153.57183662,147.39,147.34,35.30624038]
[1750200488584,5.67183662,147.38,147.34,35.30624038]
[1750200488970,5.67183662,147.38,147.34,29.63440376]
[1750200489850,5.67183662,147.38,147.34,35.30624038]
[1750200490050,147.9,147.39,147.34,35.30624038]
[1750200490285,5.67183662,147.38,147.34,35.30624038]
[1750200490779,147.9,147.39,147.35,5.67183662]
[1750200491560,153.57183662,147.39,147.34,35.30624038]
[1750200492965,153.57183662,147.39,147.36,6.78610206]
[1750200493855,5.67183662,147.38,147.36,6.78610206]
[1750200494169,153.57183662,147.39,147.36,6.78610206]
[1750200494970,5.67183662,147.38,147.35,6.7865626]
[1750200495278,153.57183662,147.39,147.35,6.7865626]
[1750200495586,5.67183662,147.38,147.35,6.7865626]
[1750200498691,153.57183662,147.39,147.35,29.42480573]
[1750200498868,147.9,147.39,147.35,29.42480573]
[1750200499074,153.57183662,147.39,147.35,29.42480573]
[1750200499470,153.57183662,147.39,147.35,23.75296911]
[1750200500992,147.9,147.38,147.35,23.75296911]
[1750200501497,153.57183662,147.38,147.35,23.75296911]
[1750200501663,6.78387065,147.41,147.35,6.7865626]
[1750200501664,5.67183662,147.36,147.35,6.7865626]
[1750200501864,153.57183662,147.37,147.35,6.7865626]
[1750200503385,147.9,147.37,147.35,6.7865626]
[1750200503699,153.57183662,147.37,147.35,6.7865626]
[1750200506871,147.9,147.36,147.35,6.7865626]
[1750200508794,153.57183662,147.36,147.35,6.7865626]
[1750200508991,147.9,147.36,147.35,6.7865626]
[1750200510102,147.9,147.36,147.35,12.45839922]
[1750200510277,147.9,147.36,147.35,6.7865626]
[1750200512698,153.57183662,147.36,147.34,12.66694048]
[1750200513091,147.9,147.36,147.34,12.66694048]
[1750200518608,147.9,147.36,147.33,16.96870758]
[1750200519179,147.9,147.36,147.33,22.6405442]
[1750200520697,147.9,147.36,147.35,5.67183662]
[1750200521709,147.9,147.4,147.35,5.67183662]
[1750200521921,5.07148719,147.39,147.35,5.67183662]
[1750200522083,147.9,147.4,147.35,5.67183662]
[1750200522289,5.07134212,147.39,147.36,5.67183662]
[1750200522613,147.9,147.4,147.37,6.78564158]
[1750200522813,5.07227784,147.39,147.37,12.4574782]
[1750200523017,147.9,147.4,147.37,29.42158215]
[1750200523192,5.0714744,147.39,147.37,29.42158215]
[1750200523393,147.9,147.4,147.37,29.42158215]
[1750200523713,5.07294181,147.39,147.37,29.42158215]
[1750200524015,147.9,147.4,147.37,29.42158215]
[1750200524187,5.07246491,147.39,147.37,23.74974553]
[1750200524389,153.57183662,147.4,147.37,23.74974553]
[1750200524606,5.07373212,147.39,147.35,23.75296911]
[1750200524933,5.07584123,147.38,147.35,29.42480573]
[1750200525212,153.57183662,147.4,147.35,29.42480573]
[1750200525393,5.07584894,147.39,147.35,23.75296911]
[1750200525594,5.07584894,147.38,147.35,29.42480573]
[1750200525811,5.67183662,147.36,147.35,6.7865626]
[1750200525999,10.74820721,147.36,147.35,6.7865626]
[1750200526204,5.07637059,147.36,147.35,6.7865626]
[1750200526694,5.07637059,147.36,147.33,6.78748387]
[1750200526898,5.67183662,147.37,147.33,6.78748387]
[1750200527096,5.07646208,147.36,147.33,6.78748387]
[1750200527318,5.07617438,147.35,147.33,6.78748387]
[1750200527515,5.67183662,147.37,147.33,6.78748387]
[1750200527819,5.0758823,147.36,147.33,6.78748387]
[1750200528016,5.67183662,147.37,147.33,6.78748387]
[1750200528228,5.07582431,147.36,147.33,12.45932049]
[1750200528395,5.07582431,147.35,147.33,12.45932049]
[1750200528596,5.67183662,147.37,147.33,12.45932049]
[1750200528816,5.07645038,147.36,147.33,12.45932049]
[1750200528989,6.29332426,147.39,147.34,5.67183662]
[1750200528990,11.96516088,147.39,147.34,5.67183662]
[1750200529193,11.96516088,147.39,147.33,23.75619356]
[1750200529194,5.07770067,147.38,147.33,23.75619356]
[1750200529415,5.0807801,147.37,147.34,5.67183662]
[1750200529617,5.67183662,147.39,147.34,5.67183662]
[1750200529822,5.08126552,147.38,147.34,5.67183662]
[1750200530015,5.67183662,147.39,147.34,5.67183662]
[1750200530214,5.08270536,147.38,147.34,5.67183662]
[1750200530414,5.08270536,147.37,147.33,23.75619356]
[1750200530616,148.32648471,147.4,147.34,5.67183662]
[1750200530617,5.67183662,147.38,147.34,5.67183662]
[1750200530810,5.08272862,147.37,147.35,6.7865626]
[1750200531014,5.67183662,147.38,147.35,6.7865626]
[1750200531323,5.08271299,147.37,147.35,6.7865626]
[1750200531506,5.67183662,147.38,147.35,6.7865626]
[1750200531702,5.08287903,147.37,147.35,6.7865626]
[1750200531930,5.08379573,147.39,147.36,5.67183662]
[1750200532096,147.9,147.4,147.38,5.67183662]
[1750200532295,5.0833965,147.39,147.38,5.67183662]
[1750200532521,5.0833965,147.39,147.38,11.55183662]
[1750200532704,147.9,147.4,147.39,6.7847208]
[1750200532902,147.9,147.4,147.39,12.45655742]
[1750200533212,13.84329086,147.42,147.39,29.41835944]
[1750200533523,13.84329086,147.42,147.41,5.67183662]
[1750200534803,13.84329086,147.42,147.41,12.4556369]